Cogmind - Beta 16.1 @@@ ROGUE MODE // 2026.03.20 @ 15:35:55 Player: GiggleBox Result: Self-destructed Performance ------------- Evolutions (2) 1000 Regions Visited (3) 600 Robots Destroyed (45) 225 Value Destroyed (991) 991 Prototype IDs (5) 100 Alien Tech Used (0) 0 Bonus (0) 0 TOTAL SCORE: 2916 Bonus ------- None Cogmind --------- Core Integrity 505/550 Matter 99/300 Energy 228/250 System Corruption 5% Temperature Cool (0) Movement Treading (160) Location -8/Materials Parts ------- > --- POWER (1) -------- Ion Engine > --- PROPULSION (3) --- Light Treads Light Treads Spiked Treads > --- UTILITY (4) ------ Large Storage Unit Seismic Detector Light Armor Plating Hacking Suite > --- WEAPON (3) ------- Heavy Assault Rifle Autogun > --- INVENTORY (15) --- Light Treads Light Treads VTOL Module VTOL Module VTOL Module VTOL Module Improved Cooling System Coolant Injector Medium Storage Unit Subdweller Beam Cannon Autogun Autogun Autogun Rocket Launcher Great Axe Peak State ------------ > --- POWER ------------ Ion Engine > --- PROPULSION ------- Light Treads Light Treads Spiked Treads > --- UTILITY ---------- Large Storage Unit Seismic Detector Light Armor Plating Hacking Suite > --- WEAPON ----------- Advanced Beam Cannon Heavy Assault Rifle Autogun > --- INVENTORY -------- Light Treads Light Treads VTOL Module VTOL Module VTOL Module VTOL Module Improved Cooling System Coolant Injector Medium Storage Unit Subdweller Beam Cannon Autogun Autogun Autogun Rocket Launcher Great Axe [Rating: 21] Favorites ----------- Power Ion Engine Engine Ion Engine Propulsion Light Treads Treads Light Treads Leg Aluminum Leg Utility Seismic Detector Device Seismic Detector Storage Large Storage Unit Hackware Hacking Suite Protection Light Armor Plating Weapon Autogun Energy Gun Medium Laser Energy Cannon Advanced Beam Cannon Ballistic Gun Autogun Build | -11 -10 -10 -8 ------- Run | Yrd Mat Sub Mat Slots Evolved 4 | . . . 4 Power . | . . . . Propulsion 1 | . . . 1 Utility 2 | . . . 2 Weapon 1 | . . . 1 Parts Attached 20 | 2 8 6 4 Power 3 | . 2 1 . Engine 3 | . 2 1 . Core . | . . . . Reactor . | . . . . Propulsion 6 | 2 . 3 1 Treads 6 | 2 . 3 1 Leg . | . . . . Wheel . | . . . . Hover . | . . . . Flight . | . . . . Utility 6 | . 4 1 1 Device 1 | . 1 . . Storage 2 | . 2 . . Processor . | . . . . Hackware 1 | . . . 1 Protection 2 | . 1 1 . Artifact . | . . . . Weapon 5 | . 2 1 2 Energy Gun . | . . . . Energy Cannon 1 | . . . 1 Ballistic Gun 4 | . 2 1 1 Ballistic Cannon . | . . . . Launcher . | . . . . Special Weapon . | . . . . Impact Weapon . | . . . . Slashing Weapon . | . . . . Piercing Weapon . | . . . . Special Melee Weapon . | . . . . Unidentified Prototypes 1 | . . . 1 Parts Lost 5 | . . 4 1 Power 1 | . . 1 . Propulsion 3 | . . 3 . Utility 1 | . . . 1 Weapon . | . . . . Highest Loss Streak 3 | . . 3 1 To Critical Strikes . | . . . . Average Backups 11 | 6 9 14 13 Power . | 1 1 . . Propulsion 4 | 4 3 4 5 Utility 3 | . 2 4 3 Weapon 3 | 1 2 5 5 Tool/Special . | . . . . Unused Backups 22 | . 7 1 14 Power 1 | . 1 . . Propulsion 8 | . 2 . 6 Utility 3 | . 1 . 2 Weapon 10 | . 3 1 6 Tool/Special . | . . . . Average Slot Usage (%) 97 | . 95 99 98 Engine 13 | . 14 13 9 Treads 27 | . 28 27 27 Device 9 | . 9 10 9 Storage 13 | . 14 14 9 Protection 3 | . . 3 16 Energy Gun 3 | . 7 . . Ballistic Gun 24 | . 20 28 26 Peak Build Rating 21 | 6 11 11 21 Average Rating 10 | 6 8 10 17 On Entrance 8 | 6 6 11 11 Avg Prop Armor Cover (%) . | . . . . Naked Turns . | . . . . Heaviest Build 41 | 12 32 34 41 Greatest Support 60 | 40 40 40 60 Greatest Overweight (x) . | . . . . Average Overweight (x) . | . . . . Largest Inventory Capacity 15 | 8 15 15 15 Average Capacity 12 | 8 10 15 15 Most Carried 15 | 8 15 15 15 Average Carried 11 | 6 9 14 13 Final Capacity 15 | 8 15 15 15 Final Carried 15 | 8 15 15 15 Class Distribution -------------------- 84% | Mutant 15% | Tank Dominant Class ---------------- Mutant | -10/Materials Mutant | -10/Subcaves Tank | -8/Materials Resources | -11 -10 -10 -8 ----------- Run | Yrd Mat Sub Mat Matter Collected 945 | 235 292 283 135 Remotely . | . . . . Salvage Created 1523 | 125 746 278 374 Parts 93 | 6 40 19 28 Haulers Intercepted 2 | . 2 . . Recyclers Shooed 1 | . 1 . . Parts Field Recycled . | . . . . Retrieved Matter . | . . . . Parts Self-Destructed 9 | . . 9 . Prevented . | . . . . Parts Restored . | . . . . Kills | -11 -10 -10 -8 ------- Run | Yrd Mat Sub Mat Combat Hostiles Destroyed 33 | . 17 8 8 Guns 33 | . 17 8 8 Classes Destroyed 11 | 2 5 2 2 Worker 1 | . . . 1 Tunneler 2 | 2 . . . Hauler 2 | . 2 . . Recycler 2 | 1 1 . . Mechanic 1 | . . . 1 Operator 1 | . 1 . . Watcher 3 | . 2 . 1 Swarmer 14 | . 6 4 4 Grunt 12 | . 11 . 1 Sentry 4 | . . 1 3 Subdweller 3 | . . 3 . Best Kill Streak 8 | 2 8 4 5 Combat Bots Only 8 | . 8 4 5 Max Kills in Single Turn 2 | 1 2 1 1 Gunslinging 1 | . 1 . . Exploded . | . . . . Melee . | . . . . Uniques/NPCs Destroyed . | . . . . Combat | -11 -10 -10 -8 -------- Run | Yrd Mat Sub Mat Hostile Shots Fired 142 | . 46 54 42 Missed 38 | . 8 15 15 Hits 104 | . 38 39 27 Projectile 104 | . 38 39 27 Critical Strikes 3 | . . . 3 Damage Taken 1386 | . 429 599 358 Core 147 | . 55 47 45 Absorbed by Shields . | . . . . Core Remaining (%) 79 | 100 . 59 . Volleys Fired 106 | 5 52 25 24 Largest 3 | 2 2 2 3 Hottest 71 | 70 70 48 71 Shots Fired 236 | 10 104 50 72 Gun 236 | 10 104 50 72 Cannon . | . . . . Launcher . | . . . . Special . | . . . . Kinetic 193 | 5 66 50 72 Thermal 43 | 5 38 . . Explosive . | . . . . Electromagnetic . | . . . . Robot Hit Streak 33 | 3 19 33 7 Robot Miss Streak 4 | 1 4 4 2 Penetration Max . | . . . . Secondary Targets 3 | . 1 2 . Max Gunslinging Chain 1 | . 1 1 . Shots Hit Robots 159 | 7 69 40 43 Core Hits 66 | 4 31 13 18 Critical Kills . | . . . . Critical Parts Destroyed . | . . . . Critical Strikes 2 | . 1 1 . Burn 1 | . 1 . . Destroy 1 | . . 1 . Melee Attacks . | . . . . Impact . | . . . . Slashing . | . . . . Piercing . | . . . . Sneak Attacks . | . . . . Combat Hostiles . | . . . . Follow-up Attacks . | . . . . Damage Inflicted 2355 | 100 963 618 674 Guns 2318 | 100 926 618 674 Cannons . | . . . . Explosions . | . . . . Melee . | . . . . Ramming 37 | . 37 . . Kinetic 1905 | 50 563 618 674 Thermal 413 | 50 363 . . Explosive . | . . . . Electromagnetic . | . . . . Impact . | . . . . Slashing . | . . . . Piercing . | . . . . Highest Corruption 5 | . . . 5 Average Corruption 5 | . . . 5 Corruption Purged . | . . . . Corruption Blocked . | . . . . Overload Shots . | . . . . Overflow Damage . | . . . . Projectiles . | . . . . Explosions . | . . . . Melee . | . . . . Knockbacks . | . . . . Impact . | . . . . Kinetic . | . . . . Secondary . | . . . . Self-Inflicted Damage . | . . . . Shots . | . . . . Rammed 9 | . 9 . . Targets Rammed 10 | . 10 . . Kicked . | . . . . Crushed 1 | . 1 . . Highest Temperature 144 | 36 32 . 144 Average Temperature 34 | 16 10 . 61 Received Heat Transfer 483 | . 192 138 153 Siege Activations . | . . . . Martial Activations . | . . . . Shielding Activations . | . . . . Robots Disrupted . | . . . . Combat Hostiles . | . . . . Robots Corrupted . | . . . . Combat Hostiles . | . . . . Parts Fried . | . . . . Impact Corruptions . | . . . . Robots Melted . | . . . . Combat Hostiles . | . . . . Parts Melted 2 | . 2 . . Heat Transferred 1295 | 148 1147 . . Parts Sabotaged . | . . . . Parts Stolen . | . . . . Parts Stripped . | . . . . Power Chain Reactions . | . . . . Alert | -11 -10 -10 -8 ------- Run | Yrd Mat Sub Mat Maximum Alert Level 1 | . 1 . . Low Security (%) 73 | 100 63 . 100 Level 1 26 | . 36 . . Level 2 . | . . . . Level 3 . | . . . . Level 4 . | . . . . Level 5 . | . . . . High Security . | . . . . Max Security . | . . . . Peak Influence 314 | 10 314 . 141 Initial 20 | . . . 20 Average 125 | 1 150 . 67 Influence Increases 1000 | 15 605 115 265 Destroy 0b10 Robot/C 600 | . 340 100 160 Destroy 0b10 Robot/NC 60 | 15 30 . 15 Destroy Leader 130 | . 88 . 42 Successful Hack 40 | . 9 . 31 Destroy Structure 5 | . 3 . 2 Lose Combat Pursuer 165 | . 135 15 15 Influence Decreases 923 | 15 605 74 229 Entered New Map 21 | . . . 21 Time Decay 742 | 15 455 74 198 Lost Part 10 | . . . 10 Purge Threat 150 | . 150 . . Squads Dispatched 6 | . 6 . . Investigation 4 | . 4 . . Extermination . | . . . . Reinforcement 2 | . 2 . . Assault . | . . . . Garrison . | . . . . Intercept . | . . . . Searches Triggered . | . . . . Construction Impeded . | . . . . Haulers Reinforced . | . . . . Active Scanning Responses . | . . . . Cargo Convoy Interrupts . | . . . . Stealth | -11 -10 -10 -8 --------- Run | Yrd Mat Sub Mat Distress Signals 5 | . 3 . 2 Communications Jammed . | . . . . Distress Signals . | . . . . Times Spotted 55 | . 35 9 11 Peak Tracking Total 9 | . 9 5 4 Tactical Retreats 5 | . 3 1 1 Traps | -11 -10 -10 -8 ------- Run | Yrd Mat Sub Mat Traps Triggered 3 | . 3 . . Indirectly . | . . . . Trap Hack Attempts . | . . . . Triggered . | . . . . Disarmed . | . . . . Reprogrammed . | . . . . Reused . | . . . . Traps Extracted . | . . . . Installed . | . . . . Triggered . | . . . . Machines | -11 -10 -10 -8 ---------- Run | Yrd Mat Sub Mat Machines Disabled . | . . . . Max in Single Turn . | . . . . Machines Repaired . | . . . . Machines Dismantled . | . . . . Machines Sabotaged . | . . . . Overloaded Fab Kills . | . . . . Hacking | -11 -10 -10 -8 --------- Run | Yrd Mat Sub Mat Machines Accessed 10 | . 7 . 3 Terminals 9 | . 7 . 2 Fabricators . | . . . . Repair Stations . | . . . . Recycling Units . | . . . . Scanalyzers 1 | . . . 1 Garrison Access . | . . . . Total Hacks 27 | . 21 . 6 Successful 15 | . 9 . 6 Failed 12 | . 12 . . Catastrophic 2 | . 2 . . Database Lockouts . | . . . . Manual 11 | . 10 . 1 Terminals 24 | . 21 . 3 Fabricators . | . . . . Repair Stations . | . . . . Recycling Units . | . . . . Scanalyzers 3 | . . . 3 Garrison Access . | . . . . Terminal Hacks 8 | . 6 . 2 Robot Analysis 2 | . 1 . 1 Prototype ID Bank 3 | . 3 . . Branch Access Points 1 | . . . 1 Terminal Index 1 | . 1 . . Unreport Threat 1 | . 1 . . Fabricator Hacks . | . . . . Repair Station Hacks . | . . . . Recycling Unit Hacks . | . . . . Scanalyzer 3 | . . . 3 Retrieve Study 3 | . . . 3 Garrison Access Hacks . | . . . . Unauthorized Hacks 4 | . 3 . 1 Terminals 4 | . 3 . 1 Botnet 4 | . 3 . 1 Fabricators . | . . . . Repair Stations . | . . . . Recycling Units . | . . . . Scanalyzers . | . . . . Garrison Access . | . . . . Data Cores Recovered . | . . . . Used . | . . . . Hacking Detections 8 | . 7 . 1 Full Trace Events 1 | . 1 . . Feedback Events . | . . . . Feedback Blocked . | . . . . Robot Schematics Acquired . | . . . . Robots Built . | . . . . Authchips . | . . . . Time . | . . . . Total Robot Build Rating . | . . . . Part Schematics Acquired . | . . . . Parts Built . | . . . . Authchips . | . . . . Time . | . . . . Total Part Build Rating . | . . . . Part Studies Acquired 3 | . . . 3 Parts Repaired . | . . . . Time . | . . . . Parts Recycled . | . . . . Recycled Matter . | . . . . Retrieved Matter . | . . . . Retrieved Components . | . . . . Parts Scanalyzed . | . . . . Part Schematics Acquired . | . . . . Parts Damaged . | . . . . Bothacking | -11 -10 -10 -8 ------------ Run | Yrd Mat Sub Mat Used RIF Installer . | . . . . Robots Hacked . | . . . . Non-combat . | . . . . Combat . | . . . . Robot Hacks Applied . | . . . . Relay Couplers Released . | . . . . Fabnet Peak Effective % . | . . . . Robots Rewired . | . . . . Allies Hacked . | . . . . Hacks Repelled . | . . . . Allies | -11 -10 -10 -8 -------- Run | Yrd Mat Sub Mat Total Allies . | . . . . Largest Group . | . . . . Highest-Rated Group . | . . . . Highest-Rated Ally . | . . . . Total Orders . | . . . . Ally Attacks . | . . . . Total Damage . | . . . . Kills . | . . . . Allies Corrupted . | . . . . Allies Melted . | . . . . Intel | -11 -10 -10 -8 ------- Run | Yrd Mat Sub Mat Active Infowar (turns) 2022 | . 905 704 413 Seismic 2022 | . 905 704 413 Robot Analysis Total 2 | . 1 . 1 Derelict Logs Recovered 1 | . . 1 . Drone Launches . | . . . . Drone Recoveries . | . . . . Exploration | -11 -10 -10 -8 ------------- Run | Yrd Mat Sub Mat Turns Passed 2697 | 74 1315 895 413 Spaces Moved 1306 | 27 610 468 201 Core . | . . . . Treads 1287 | 8 610 468 201 Legs 19 | 19 . . . Wheels . | . . . . Hover . | . . . . Flight . | . . . . Fastest Speed 120 | 120 160 160 160 Average Speed 159 | 131 160 160 160 Slowest Speed 160 | 160 160 160 160 Overloaded Moves . | . . . . Propulsion Burnouts . | . . . . Robots Hopped . | . . . . Potential Cave-ins . | . . . . Cave-ins Triggered . | . . . . Exploration Rate (%) 37 | 3 93 29 24 Regions Visited 3 Branch Regions 1 Pre-discovered Areas . | . . . . Known Exits Taken . | . . . . Unknown Exits Taken 3 | 1 1 1 . Scrap Searched . | . . . . Spaces Dug . | . . . . Terrain Destroyed . | . . . . Melee . | . . . . Projectile . | . . . . AOE . | . . . . Terrain Rammed . | . . . . Walls Destroyed . | . . . . Machines Disabled . | . . . . Actions | -11 -10 -10 -8 --------- Run | Yrd Mat Sub Mat Total 1723 | 55 848 570 250 Wait 232 | 20 142 61 9 Move 1303 | 26 609 467 201 Hop . | . . . . Pick Up 27 | 2 14 5 6 Fast Attach 1 | . 1 . . Attach 10 | . 1 4 5 Detach 1 | . 1 . . Swap 18 | 2 7 7 2 Drop 15 | . 11 1 3 Fire 106 | 5 52 25 24 Melee . | . . . . Ram . | . . . . Kick . | . . . . Crush 10 | . 10 . . Escape Stasis . | . . . . Rewire . | . . . . Trap . | . . . . Miscellaneous . | . . . . Route ------- -11/Scrapyard -10/Materials (discovered 5 exits: [*Mat x3] / [*Min] / [*Sub]) -10/Subcaves -8/Materials (discovered 2 exits: Fac x2) History --------- Turn | Location | Event 1 | -11/Scrapyard | Discovered new exit (range 1) 75 | -11/Scrapyard | Entered Materials 317 | -10/Materials | Build established: Mutant 419 | -10/Materials | Destroyed 8 combat bots 496 | -10/Materials | Discovered new exit (range 10) 616 | -10/Materials | Discovered new exit (range 16) 804 | -10/Materials | Discovered new exit (range 16) 1122 | -10/Materials | Discovered new exit (range 8) 1374 | -10/Materials | Discovered new exit (range 11) 1390 | -10/Materials | Entered Subcaves 1391 | -10/Subcaves | Approached by a straggling Scientist 1431 | -10/Subcaves | A swath of the cavern ceiling suddenly collapsed 1461 | -10/Subcaves | Learned 4 Materials zone layouts 1522 | -10/Subcaves | Shifting Twisted Machinery released Battle Rifle 1528 | -10/Subcaves | Shifting Twisted Machinery released Scrap Shield 1852 | -10/Subcaves | Lost 3 parts (1p2n) 2244 | -10/Subcaves | Shifting Twisted Machinery released Scrap Shield 2264 | -10/Subcaves | Shifting Twisted Machinery released Spk. Treads 2265 | -10/Subcaves | Discovered new exit (range 8) 2285 | -10/Subcaves | Entered Materials 2285 | -8/Materials | Evolved 4 slots: Propulsion x1, Utility x2, Weapon x1 2286 | -8/Materials | Identified exit to Factory 2571 | -8/Materials | Build established: Tank 2698 | -8/Materials | Self-destructed Last Messages --------------- 02677_ Connecting with Terminal... >>Trojan(Botnet) Trojan loaded successfully. Testing... Terminal linked with 0 systems. Awaiting botnet instructions. >>Analysis(B-48 Gladiator) Downloading analysis... B-48 Gladiator Tier: 4 B-48 Gladiators are better armored than the B-36, replace the hammer with a slightly more damaging mace, and like other B-series brawlers are only dispatched in coordination with grunts. 02691_ Connecting with Terminal... >>Access(Branch) No branch access points found. 02695_ Acquired Prototype Energy Cannon. 02696_ Identified Adv. Beam Cannon. 02696_ Faulty integration triggers system corruption (+5). 02698_ Dropped Faulty Adv. Beam Cannon. Map ----- +----------------------------------------------------+ | ??????????# #?# # ????????????????????????? "" | | ??????????# #?# ###+?????????????????????????### | | ??????????# #?# ?????????????????????????### | | ??????????# #?# ????[%!?????????????????? | | ??????????# #?# ???? ????????????????? | | ??????????# #?########???? ?????????????????### | | ??????????# #????????????? #?????????????????### | | ??????????# #????????????# #?????????????????# | | ??????????# #????????#?###%! #?????????????????# | | ??????????# #????????#?! * +???????????????????? | | ???????########??????#?? #???????????????????? | | #####??#! #??????#?? #???????????????????? | | #??# #??????#?? #???????????????????? | | " #??# """ #??????#??? a#???????????????????? | | " #??# """ #??????#??? #???????????????????? | | " [#??# """ #??????#???# #???????????????????? | | " #??# #??????????# #???????????????????? | | #######+############## #???????????????????? | | ##+## #???????????????????? | | = #???????????????????? | | ##+## #???????????????????? | | # # ################## #???????????????????? | | # # #????????????###?# r#???????????????????? | | #! # #?????????####T### #???????????????????? | | # # #####?????# !!] #???????????????????? | | #!! # !!#?????# !!@ #???????????????????? | | #!! # % !#?????#" !! !#???????????????????? | | #! # !!#?????#" #???????????????????? | | ##### !#?????#" #???????????????????? | | ????# /#?????#T """ #???????????????????? | | ????# //#?????#" """"" #???????????????????? | | ???## #####?????#" """"" #???????????????????? | | ####[ #????????#" u""""" #???????????????????? | | #????????# """ ???????????????????? | | % #????????# ? ??????????????????? | | #????????# ? ?????????????????? | | #### = #????????# ###?##### ????????????????? | | ???## ##????????# ????????##????????????????? | | ????# #?????????# ??????????????????????????? | | ????# #?????????# T ??????????????????????????? | | ????+ +?????????# ??????????????????????????? | | ????# #?????????# ??????????????????????????? | | ????# #??????????# ? ??????????????????????????? | | ????# #??????????? ????????????????????????????? | | ????# #????????????????????????????????????????? | | ????? #????????????????????????????????????????? | | ????? #????????????????????????????????????????? | | ????? #????????????????????????????????????????? | | ?????? ??????????????????????????????????????????? | | ?????????????????????????????????????????????????? | +----------------------------------------------------+ Best States ------------- Heat Dissipation 31 Energy Generation 10 Energy Capacity 250 Matter Stores 300 Matter Capacity 300 Sight Range 16 Terrain Scan Density 10 Armor Coverage 300 Evasion (%) 50 Recoil Reduction 3 Offensive Hacking 10 Item Schematics ----------------- None Robot Schematics ------------------ None Fabricated ------------ Nothing Repaired ---------- Nothing Studied --------- VTOL Module | -8/Materials | Hacked Lgt. Treads | -8/Materials | Hacked Hvy. Assault Rifle | -8/Materials | Hacked Alien Tech Used ----------------- None Achievements -------------- None Challenges ------------ None Game ------ Seed AntisysReactiveFlail Manual? 0 Play Time 00:19:44 Cumulative 291.5 hours Start 2026.03.20 @ 14:52:56 End 2026.03.20 @ 15:35:55 Sessions 1 Manual Loads 0 Difficulty Rogue Special Mode None Game No. 209 Rogue 209 Adventurer 0 Explorer 0 Win Type - Total 9 Types 5/1/1/2/0/0/0/0/0/0 Lore% 80 Gallery% 69 Achievement% 60 Wizard Run 0 Options --------- Layout 0 ASCII 0 Keyboard 1 Movement Numpad Keybinds 0 Fullscreen 1 Font 24/Terminus Map View 76x50 Zoom Use 0% Tactical HUD 1 Map Filters NONE Filters NONE Steam 1 RUN: 20d81b08-ba68-4dba-a44d-958ea38c8286